[Event "Early-Titled-Tuesday-Blitz-April-02-2024"]
[Site "Chess.com"]
[Date "2024.04.02"]
[Round "5"]
[White "GrotBchess"]
[Black "ReadySkate"]
[Result "0-1"]
[WhiteElo "2451"]
[BlackElo "2606"]
[TimeControl "180+1"]
[EndTime "8:55:55 PDT"]
[Termination "ReadySkate won by resignation"]

1. e4 {[%clk 0:02:56.1]} 1... c5 {[%clk 0:02:59.5]} 2. Nf3 {[%clk 0:02:55]} 2...
e6 {[%clk 0:02:59.8]} 3. d4 {[%clk 0:02:54.6]} 3... cxd4 {[%clk 0:03:00.7]} 4.
Nxd4 {[%clk 0:02:54.5]} 4... Nf6 {[%clk 0:03:01.2]} 5. Nc3 {[%clk 0:02:54.2]}
5... Nc6 {[%clk 0:03:01.2]} 6. Ndb5 {[%clk 0:02:54.1]} 6... Bc5 {[%clk
0:03:00.9]} 7. Bf4 {[%clk 0:02:53.2]} 7... O-O {[%clk 0:03:00.8]} 8. Bc7 {[%clk
0:02:52.4]} 8... Qe7 {[%clk 0:03:00.9]} 9. Bd6 {[%clk 0:02:52.7]} 9... Bxd6
{[%clk 0:03:00.9]} 10. Qxd6 {[%clk 0:02:53.3]} 10... Qd8 {[%clk 0:03:01.4]} 11.
O-O-O {[%clk 0:02:53.2]} 11... a6 {[%clk 0:03:01.3]} 12. Nd4 {[%clk 0:02:53.1]}
12... Na5 {[%clk 0:03:01.3]} 13. g4 {[%clk 0:02:37]} 13... b5 {[%clk 0:02:53.5]}
14. g5 {[%clk 0:02:31]} 14... Ne8 {[%clk 0:02:51.4]} 15. Qg3 {[%clk 0:02:28.4]}
15... b4 {[%clk 0:02:50.5]} 16. Nce2 {[%clk 0:02:24.7]} 16... Bb7 {[%clk
0:02:50.8]} 17. Bg2 {[%clk 0:02:24.6]} 17... Nc4 {[%clk 0:02:48]} 18. f4 {[%clk
0:02:20.9]} 18... Qa5 {[%clk 0:02:46.6]} 19. Kb1 {[%clk 0:02:19.2]} 19... Rc8
{[%clk 0:02:45.6]} 20. Nb3 {[%clk 0:02:19]} 20... Qb6 {[%clk 0:02:44.7]} 21.
Rxd7 {[%clk 0:02:11.8]} 21... Bc6 {[%clk 0:02:43.8]} 22. Rd3 {[%clk 0:02:08.1]}
22... a5 {[%clk 0:02:42.9]} 23. Ned4 {[%clk 0:02:05.9]} 23... a4 {[%clk
0:02:41.5]} 24. Nxc6 {[%clk 0:02:04]} 24... Qxc6 {[%clk 0:02:38.3]} 25. Nd4
{[%clk 0:02:03.7]} 25... Qc5 {[%clk 0:02:37.8]} 26. Rc1 {[%clk 0:01:49.4]} 26...
Ned6 {[%clk 0:02:33]} 27. e5 {[%clk 0:01:42.1]} 27... Nf5 {[%clk 0:02:31.3]} 28.
Nxf5 {[%clk 0:01:40.8]} 28... exf5 {[%clk 0:02:32.2]} 29. Bd5 {[%clk 0:01:38.5]}
29... Nb6 {[%clk 0:02:25.4]} 30. Qf3 {[%clk 0:01:28.3]} 30... Rfd8 {[%clk
0:02:23.1]} 31. Bb7 {[%clk 0:01:25.8]} 31... Rxd3 {[%clk 0:02:20.2]} 32. Qxd3
{[%clk 0:01:23.3]} 32... Rb8 {[%clk 0:02:20.2]} 33. Bf3 {[%clk 0:01:19.2]} 33...
Nc4 {[%clk 0:02:19.2]} 34. Rd1 {[%clk 0:01:15.8]} 34... g6 {[%clk 0:02:14.9]}
35. Bd5 {[%clk 0:01:11]} 35... Ne3 {[%clk 0:02:11.4]} 36. Rd2 {[%clk 0:01:06.6]}
36... Kg7 {[%clk 0:02:03.5]} 37. Bf3 {[%clk 0:01:00.3]} 37... Nc4 {[%clk
0:01:58.6]} 38. Rd1 {[%clk 0:00:59.9]} 38... Rc8 {[%clk 0:01:54.9]} 39. Qd4
{[%clk 0:00:49.5]} 39... Ne3 {[%clk 0:01:00.2]} 40. Qxc5 {[%clk 0:00:44.8]}
40... Rxc5 {[%clk 0:00:59.1]} 41. Rd2 {[%clk 0:00:42.2]} 41... a3 {[%clk
0:00:58.3]} 42. b3 {[%clk 0:00:30.1]} 42... Rc3 {[%clk 0:00:56.4]} 43. Rf2
{[%clk 0:00:18.6]} 43... Nxc2 {[%clk 0:00:53.9]} 44. Rxc2 {[%clk 0:00:17.2]}
44... Rxf3 {[%clk 0:00:53.6]} 45. Rc4 {[%clk 0:00:17.6]} 45... Rf1+ {[%clk
0:00:53.5]} 46. Kc2 {[%clk 0:00:16.8]} 46... Rf2+ {[%clk 0:00:54.1]} 47. Kb1
{[%clk 0:00:15.8]} 47... Rb2+ {[%clk 0:00:53.5]} 48. Kc1 {[%clk 0:00:13.6]}
48... Rxa2 {[%clk 0:00:52.9]} 49. Rxb4 {[%clk 0:00:13.8]} 49... Rxh2 {[%clk
0:00:53.6]} 50. Ra4 {[%clk 0:00:14]} 50... a2 {[%clk 0:00:54.2]} 51. b4 {[%clk
0:00:13.2]} 51... Kf8 {[%clk 0:00:54.9]} 52. Ra7 {[%clk 0:00:11.1]} 52... Ke8
{[%clk 0:00:54.7]} 53. b5 {[%clk 0:00:11.1]} 53... Kd8 {[%clk 0:00:55]} 54. b6
{[%clk 0:00:10.4]} 54... Kc8 {[%clk 0:00:55.6]} 55. Rc7+ {[%clk 0:00:05.9]}
55... Kb8 {[%clk 0:00:55.4]} 56. Ra7 {[%clk 0:00:06.4]} 56... Rg2 {[%clk
0:00:53.3]} 57. Ra5 {[%clk 0:00:02.3]} 57... Kb7 {[%clk 0:00:53.2]} 58. Ra7+
{[%clk 0:00:02.1]} 58... Kxb6 {[%clk 0:00:53.6]} 59. Ra3 {[%clk 0:00:03]} 59...
Kb5 {[%clk 0:00:53.7]} 0-1

[Event "Early-Titled-Tuesday-Blitz-April-02-2024"]
[Site "Chess.com"]
[Date "2024.04.02"]
[Round "5"]
[White "KacperKacprzak"]
[Black "SharapovEvgeny"]
[Result "1-0"]
[WhiteElo "2707"]
[BlackElo "2552"]
[TimeControl "180+1"]
[EndTime "8:55:57 PDT"]
[Termination "KacperKacprzak won by resignation"]

1. e4 {[%clk 0:03:00.9]} 1... c5 {[%clk 0:02:59.7]} 2. Nf3 {[%clk 0:03:01.3]}
2... d6 {[%clk 0:02:59.9]} 3. d4 {[%clk 0:03:01.8]} 3... cxd4 {[%clk 0:03:00.2]}
4. Nxd4 {[%clk 0:03:02.7]} 4... Nf6 {[%clk 0:03:00.6]} 5. Nc3 {[%clk 0:03:03.4]}
5... Nc6 {[%clk 0:03:00.7]} 6. Bg5 {[%clk 0:03:01.3]} 6... e6 {[%clk 0:03:00.8]}
7. Qd2 {[%clk 0:03:00.7]} 7... Be7 {[%clk 0:03:01.2]} 8. O-O-O {[%clk
0:02:58.8]} 8... O-O {[%clk 0:03:01.4]} 9. f3 {[%clk 0:02:58.5]} 9... Nxd4
{[%clk 0:02:58.8]} 10. Qxd4 {[%clk 0:02:58.6]} 10... Qa5 {[%clk 0:02:59.5]} 11.
h4 {[%clk 0:02:56.3]} 11... Rd8 {[%clk 0:02:58]} 12. Kb1 {[%clk 0:02:56]} 12...
Bd7 {[%clk 0:02:57.6]} 13. g4 {[%clk 0:02:51.4]} 13... Bc6 {[%clk 0:02:57.3]}
14. Qd2 {[%clk 0:02:47.7]} 14... Kf8 {[%clk 0:02:46.7]} 15. Bd3 {[%clk
0:02:47.7]} 15... b5 {[%clk 0:02:41.1]} 16. h5 {[%clk 0:02:45.4]} 16... b4
{[%clk 0:02:41.1]} 17. Ne2 {[%clk 0:02:44.8]} 17... h6 {[%clk 0:02:33.6]} 18.
Be3 {[%clk 0:02:45.2]} 18... d5 {[%clk 0:02:32.5]} 19. e5 {[%clk 0:02:44.3]}
19... Ne4 {[%clk 0:02:32.6]} 20. Qe1 {[%clk 0:02:35]} 20... Nc5 {[%clk
0:02:24.7]} 21. Nd4 {[%clk 0:02:22.8]} 21... Rac8 {[%clk 0:02:18.8]} 22. f4
{[%clk 0:02:20.1]} 22... Na4 {[%clk 0:02:09.7]} 23. f5 {[%clk 0:02:13]} 23...
Nc3+ {[%clk 0:02:09.6]} 24. bxc3 {[%clk 0:02:03.1]} 24... bxc3 {[%clk
0:02:09.5]} 25. Nb3 {[%clk 0:01:57.7]} 25... Qb4 {[%clk 0:02:04.5]} 26. Ka1
{[%clk 0:01:48.8]} 26... d4 {[%clk 0:01:59.7]} 27. Bf4 {[%clk 0:01:46.2]} 27...
Bd5 {[%clk 0:01:52.3]} 28. Rb1 {[%clk 0:01:45.3]} 28... a5 {[%clk 0:01:41.5]}
29. f6 {[%clk 0:01:21.4]} 29... gxf6 {[%clk 0:01:35.9]} 30. exf6 {[%clk
0:01:22.3]} 30... Bxf6 {[%clk 0:01:31.8]} 31. Bxh6+ {[%clk 0:01:03.7]} 31... Ke7
{[%clk 0:01:31.6]} 32. Rf1 {[%clk 0:00:54.6]} 32... a4 {[%clk 0:01:28.1]} 33.
Rxf6 {[%clk 0:00:54.1]} 33... axb3 {[%clk 0:01:27.3]} 34. cxb3 {[%clk
0:00:53.5]} 34... Ra8 {[%clk 0:01:21.5]} 35. Rf2 {[%clk 0:00:35.3]} 35... Rd7
{[%clk 0:01:11.9]} 36. Bg5+ {[%clk 0:00:24.6]} 36... Ke8 {[%clk 0:01:09.6]} 37.
Qe2 {[%clk 0:00:12.9]} 37... Rda7 {[%clk 0:01:06.3]} 38. h6 {[%clk 0:00:13.5]}
38... Kd7 {[%clk 0:00:36.3]} 39. h7 {[%clk 0:00:13.4]} 39... Kc6 {[%clk
0:00:33.5]} 40. Bf6 {[%clk 0:00:12.9]} 40... Kb6 {[%clk 0:00:27.7]} 41. h8=Q
{[%clk 0:00:12.5]} 41... Rxh8 {[%clk 0:00:27.3]} 42. Bxh8 {[%clk 0:00:13.4]}
42... Kc6 {[%clk 0:00:20.5]} 43. Be4 {[%clk 0:00:10.4]} 43... d3 {[%clk
0:00:18.9]} 44. Bxd5+ {[%clk 0:00:10.4]} 44... exd5 {[%clk 0:00:17.7]} 45. Qxd3
{[%clk 0:00:10.6]} 45... d4 {[%clk 0:00:14.4]} 46. Qxd4 {[%clk 0:00:09.5]} 46...
Qxd4 {[%clk 0:00:14.2]} 47. Bxd4 {[%clk 0:00:10.4]} 47... Rd7 {[%clk 0:00:12.5]}
48. Bxc3 {[%clk 0:00:10.7]} 48... Rd3 {[%clk 0:00:12.8]} 49. Bb2 {[%clk
0:00:11.2]} 1-0

[Event "Early-Titled-Tuesday-Blitz-April-02-2024"]
[Site "Chess.com"]
[Date "2024.04.02"]
[Round "5"]
[White "RantomOpening"]
[Black "EvgenyBurmakin"]
[Result "1-0"]
[WhiteElo "2571"]
[BlackElo "2363"]
[TimeControl "180+1"]
[EndTime "8:55:57 PDT"]
[Termination "RantomOpening won on time"]

1. c4 {[%clk 0:03:00]} 1... Nf6 {[%clk 0:02:58.3]} 2. Nf3 {[%clk 0:02:59.9]}
2... g6 {[%clk 0:02:57.6]} 3. Nc3 {[%clk 0:02:54.9]} 3... Bg7 {[%clk 0:02:57.6]}
4. e4 {[%clk 0:02:54.7]} 4... d6 {[%clk 0:02:56]} 5. d4 {[%clk 0:02:54.5]} 5...
O-O {[%clk 0:02:55.7]} 6. Be2 {[%clk 0:02:54.9]} 6... e5 {[%clk 0:02:55.4]} 7.
Bg5 {[%clk 0:02:46.2]} 7... h6 {[%clk 0:02:53.9]} 8. Bh4 {[%clk 0:02:43.4]} 8...
Nc6 {[%clk 0:02:47.4]} 9. d5 {[%clk 0:02:39.8]} 9... Ne7 {[%clk 0:02:45.3]} 10.
O-O {[%clk 0:02:39.3]} 10... g5 {[%clk 0:02:34.8]} 11. Bg3 {[%clk 0:02:38.6]}
11... Ng6 {[%clk 0:02:35.1]} 12. c5 {[%clk 0:02:36]} 12... Nh5 {[%clk
0:02:32.9]} 13. cxd6 {[%clk 0:02:34.4]} 13... cxd6 {[%clk 0:02:33.8]} 14. Rc1
{[%clk 0:02:33.3]} 14... Nhf4 {[%clk 0:02:30.7]} 15. Qc2 {[%clk 0:02:11.7]}
15... a6 {[%clk 0:02:18.6]} 16. Bd1 {[%clk 0:02:06.2]} 16... f5 {[%clk
0:02:11.9]} 17. exf5 {[%clk 0:02:00.2]} 17... Bxf5 {[%clk 0:02:11.4]} 18. Qb3
{[%clk 0:01:59.8]} 18... h5 {[%clk 0:01:42.8]} 19. Bc2 {[%clk 0:01:34]} 19... h4
{[%clk 0:01:27.5]} 20. Bxf4 {[%clk 0:01:26.8]} 20... exf4 {[%clk 0:01:10.8]} 21.
Bxf5 {[%clk 0:01:24.4]} 21... Rxf5 {[%clk 0:01:11.5]} 22. Qc2 {[%clk 0:01:24.3]}
22... Qf8 {[%clk 0:00:58.9]} 23. h3 {[%clk 0:01:21.9]} 23... Rc8 {[%clk
0:00:46.3]} 24. Nh2 {[%clk 0:01:17.6]} 24... Ne5 {[%clk 0:00:45.1]} 25. Ng4
{[%clk 0:01:17]} 25... f3 {[%clk 0:00:42.7]} 26. Nxe5 {[%clk 0:01:04.6]} 26...
fxg2 {[%clk 0:00:33.5]} 27. Kxg2 {[%clk 0:01:04.6]} 27... Bxe5 {[%clk
0:00:31.6]} 28. Qe4 {[%clk 0:01:02.8]} 28... Qf6 {[%clk 0:00:26.4]} 29. Qg4
{[%clk 0:00:54.2]} 29... Rf8 {[%clk 0:00:15.8]} 30. Ne4 {[%clk 0:00:53.7]} 30...
Qg7 {[%clk 0:00:13.1]} 31. f3 {[%clk 0:00:49.8]} 31... Bxb2 {[%clk 0:00:12.4]}
32. Rb1 {[%clk 0:00:49]} 32... b5 {[%clk 0:00:10.4]} 33. Rbd1 {[%clk 0:00:40.1]}
33... Be5 {[%clk 0:00:09.1]} 34. Rd3 {[%clk 0:00:37.4]} 34... R8f7 {[%clk
0:00:07.8]} 35. Rc1 {[%clk 0:00:33.6]} 35... Kh7 {[%clk 0:00:03.2]} 36. Rc8
{[%clk 0:00:30.1]} 36... Qg6 {[%clk 0:00:01.3]} 37. Re8 {[%clk 0:00:18.9]} 37...
Rf4 {[%clk 0:00:01.8]} 38. Qc8 {[%clk 0:00:17.8]} 38... Rxe4 {[%clk 0:00:02]}
39. Rd8 {[%clk 0:00:15.2]} 1-0

[Event "Early-Titled-Tuesday-Blitz-April-02-2024"]
[Site "Chess.com"]
[Date "2024.04.02"]
[Round "5"]
[White "Zavgorodniy_Sergiy"]
[Black "santosalberto1987"]
[Result "1-0"]
[WhiteElo "2649"]
[BlackElo "2502"]
[TimeControl "180+1"]
[EndTime "8:55:58 PDT"]
[Termination "Zavgorodniy_Sergiy won by resignation"]

1. d4 {[%clk 0:03:00.9]} 1... Nf6 {[%clk 0:02:44.9]} 2. c4 {[%clk 0:03:00.9]}
2... d6 {[%clk 0:02:44.9]} 3. Nc3 {[%clk 0:03:00.3]} 3... e5 {[%clk 0:02:39.9]}
4. Nf3 {[%clk 0:02:59.2]} 4... e4 {[%clk 0:02:39.7]} 5. Nd2 {[%clk 0:02:53.9]}
5... Qe7 {[%clk 0:02:39.7]} 6. e3 {[%clk 0:02:54]} 6... g6 {[%clk 0:02:36.7]} 7.
Be2 {[%clk 0:02:53.8]} 7... Bg7 {[%clk 0:02:36.4]} 8. O-O {[%clk 0:02:52.3]}
8... O-O {[%clk 0:02:36.1]} 9. b4 {[%clk 0:02:52.3]} 9... Bf5 {[%clk 0:02:28.9]}
10. Bb2 {[%clk 0:02:51.8]} 10... h5 {[%clk 0:02:28.4]} 11. Qc2 {[%clk
0:02:50.8]} 11... Re8 {[%clk 0:02:26.4]} 12. Rfc1 {[%clk 0:02:49.7]} 12... Nbd7
{[%clk 0:02:15.4]} 13. Qd1 {[%clk 0:02:45.1]} 13... Nf8 {[%clk 0:02:08.8]} 14.
a4 {[%clk 0:02:44.6]} 14... N8h7 {[%clk 0:02:06.9]} 15. a5 {[%clk 0:02:42.7]}
15... a6 {[%clk 0:02:06.4]} 16. b5 {[%clk 0:02:42.1]} 16... Ng4 {[%clk
0:02:04.6]} 17. h3 {[%clk 0:02:37.7]} 17... Qh4 {[%clk 0:02:01.8]} 18. hxg4
{[%clk 0:02:18.7]} 18... hxg4 {[%clk 0:02:02.7]} 19. Nf1 {[%clk 0:02:12.7]}
19... Ng5 {[%clk 0:02:01.3]} 20. Ng3 {[%clk 0:02:12.3]} 20... Kh7 {[%clk
0:01:39]} 21. Nd5 {[%clk 0:01:47.4]} 21... Rac8 {[%clk 0:01:36.3]} 22. Nf4
{[%clk 0:01:40.7]} 22... Rh8 {[%clk 0:01:31.8]} 23. Kf1 {[%clk 0:01:20.2]} 23...
Kg8 {[%clk 0:01:20.6]} 24. Ke1 {[%clk 0:01:19.7]} 24... Qh2 {[%clk 0:00:49.5]}
25. Kd2 {[%clk 0:01:13.8]} 25... Nf3+ {[%clk 0:00:43.1]} 26. Kc2 {[%clk
0:01:05.6]} 26... axb5 {[%clk 0:00:36.9]} 27. cxb5 {[%clk 0:01:04.9]} 27... c6
{[%clk 0:00:35.9]} 28. b6 {[%clk 0:01:03.3]} 28... c5 {[%clk 0:00:35.6]} 29. Kb3
{[%clk 0:00:52.5]} 29... g5 {[%clk 0:00:26.6]} 30. Nd5 {[%clk 0:00:47.3]} 30...
Be6 {[%clk 0:00:24.9]} 31. Bc4 {[%clk 0:00:46.7]} 31... Bxd5 {[%clk 0:00:20.1]}
32. Bxd5 {[%clk 0:00:46.5]} 32... Qxg2 {[%clk 0:00:21]} 33. Nxe4 {[%clk
0:00:40.3]} 33... Re8 {[%clk 0:00:18]} 34. Nxd6 {[%clk 0:00:39.5]} 34... Rd8
{[%clk 0:00:17.6]} 35. Bxf7+ {[%clk 0:00:33.3]} 35... Kf8 {[%clk 0:00:17.2]} 36.
dxc5 {[%clk 0:00:33.5]} 36... Qxf2 {[%clk 0:00:16.1]} 37. Bxg7+ {[%clk
0:00:30.5]} 37... Kxg7 {[%clk 0:00:17]} 38. Qd3 {[%clk 0:00:26.2]} 38... Ne5
{[%clk 0:00:14.9]} 39. Qd4 {[%clk 0:00:23.7]} 39... Qf6 {[%clk 0:00:14.5]} 40.
Rf1 {[%clk 0:00:22.8]} 40... Qe7 {[%clk 0:00:13.4]} 41. Rf5 {[%clk 0:00:21.8]}
41... g3 {[%clk 0:00:09.7]} 42. Rxe5 {[%clk 0:00:20.7]} 42... Qf6 {[%clk
0:00:09.7]} 43. Rg1 {[%clk 0:00:13.6]} 43... Rh3 {[%clk 0:00:07.3]} 44. Rxg5+
{[%clk 0:00:13.6]} 44... Kf8 {[%clk 0:00:06.5]} 45. Qxf6 {[%clk 0:00:12.5]} 1-0

[Event "Early-Titled-Tuesday-Blitz-April-02-2024"]
[Site "Chess.com"]
[Date "2024.04.02"]
[Round "5"]
[White "kritipatel"]
[Black "secrethawk1"]
[Result "0-1"]
[WhiteElo "2253"]
[BlackElo "2417"]
[TimeControl "180+1"]
[EndTime "8:55:59 PDT"]
[Termination "secrethawk1 won by checkmate"]

1. e4 {[%clk 0:02:46.7]} 1... e6 {[%clk 0:02:56.7]} 2. d4 {[%clk 0:02:44]} 2...
d5 {[%clk 0:02:57.6]} 3. Nc3 {[%clk 0:02:44.6]} 3... dxe4 {[%clk 0:02:53.8]} 4.
Nxe4 {[%clk 0:02:45.2]} 4... Nf6 {[%clk 0:02:47.9]} 5. Nxf6+ {[%clk 0:02:42]}
5... Qxf6 {[%clk 0:02:41.4]} 6. Nf3 {[%clk 0:02:42.1]} 6... h6 {[%clk
0:02:34.3]} 7. Bd3 {[%clk 0:02:42]} 7... Bd6 {[%clk 0:02:30.6]} 8. O-O {[%clk
0:02:41]} 8... O-O {[%clk 0:02:30.5]} 9. c3 {[%clk 0:02:40.7]} 9... c5 {[%clk
0:02:28.7]} 10. Bc2 {[%clk 0:02:38.6]} 10... Nc6 {[%clk 0:02:27]} 11. Qd3 {[%clk
0:02:31.8]} 11... Qf5 {[%clk 0:02:17.4]} 12. Qxf5 {[%clk 0:02:11.2]} 12... exf5
{[%clk 0:02:18.3]} 13. d5 {[%clk 0:02:11.7]} 13... Ne7 {[%clk 0:02:15.7]} 14. c4
{[%clk 0:02:10.8]} 14... Bd7 {[%clk 0:02:10.1]} 15. b3 {[%clk 0:02:08.9]} 15...
Rfe8 {[%clk 0:02:07.6]} 16. Bb2 {[%clk 0:02:09.2]} 16... Ng6 {[%clk 0:02:04.5]}
17. Rae1 {[%clk 0:02:09.2]} 17... Nf4 {[%clk 0:02:00.2]} 18. Be5 {[%clk
0:02:03.2]} 18... Bxe5 {[%clk 0:01:49]} 19. Nxe5 {[%clk 0:02:03.1]} 19... Red8
{[%clk 0:01:46.4]} 20. Nxd7 {[%clk 0:02:00.2]} 20... Rxd7 {[%clk 0:01:47.3]} 21.
Bxf5 {[%clk 0:02:00.4]} 21... Rdd8 {[%clk 0:01:45.7]} 22. Re7 {[%clk 0:01:59.3]}
22... b5 {[%clk 0:01:43]} 23. Rd1 {[%clk 0:01:43.6]} 23... Kf8 {[%clk 0:01:36]}
24. Rc7 {[%clk 0:01:35.6]} 24... g6 {[%clk 0:01:29.5]} 25. Be4 {[%clk
0:01:29.2]} 25... bxc4 {[%clk 0:01:24.9]} 26. bxc4 {[%clk 0:01:21.9]} 26... Rac8
{[%clk 0:01:17.1]} 27. Rxa7 {[%clk 0:01:21.1]} 27... Rd6 {[%clk 0:01:11.9]} 28.
g3 {[%clk 0:01:19.7]} 28... Ne2+ {[%clk 0:01:09.7]} 29. Kg2 {[%clk 0:01:19.8]}
29... Nc3 {[%clk 0:01:09.2]} 30. Re1 {[%clk 0:01:17.2]} 30... Re8 {[%clk
0:01:06.9]} 31. f3 {[%clk 0:00:55.4]} 31... f5 {[%clk 0:01:05.2]} 32. Ra3 {[%clk
0:00:50.9]} 32... Nxe4 {[%clk 0:00:56]} 33. fxe4 {[%clk 0:00:50.5]} 33... fxe4
{[%clk 0:00:54.4]} 34. Rae3 {[%clk 0:00:48.3]} 34... Ra6 {[%clk 0:00:50.4]} 35.
R1e2 {[%clk 0:00:47.1]} 35... Ra4 {[%clk 0:00:49.9]} 36. Rxe4 {[%clk 0:00:38.6]}
36... Rxe4 {[%clk 0:00:47.2]} 37. Rxe4 {[%clk 0:00:39.5]} 37... Rxa2+ {[%clk
0:00:46.2]} 38. Kh3 {[%clk 0:00:40]} 38... Rd2 {[%clk 0:00:43.5]} 39. Re6 {[%clk
0:00:37.6]} 39... Rd4 {[%clk 0:00:34.6]} 40. Rxg6 {[%clk 0:00:37]} 40... Rxc4
{[%clk 0:00:35]} 41. Rxh6 {[%clk 0:00:37.1]} 41... Rd4 {[%clk 0:00:35.2]} 42.
Rd6 {[%clk 0:00:31.8]} 42... Ke7 {[%clk 0:00:29.9]} 43. Re6+ {[%clk 0:00:29.3]}
43... Kf7 {[%clk 0:00:27.2]} 44. Re5 {[%clk 0:00:27.4]} 44... Kf6 {[%clk
0:00:25]} 45. Rh5 {[%clk 0:00:25.8]} 45... c4 {[%clk 0:00:25.1]} 46. d6 {[%clk
0:00:18]} 46... Rxd6 {[%clk 0:00:24]} 47. Rc5 {[%clk 0:00:18.5]} 47... Rd4
{[%clk 0:00:21.8]} 48. g4 {[%clk 0:00:18.6]} 48... Rd3+ {[%clk 0:00:19.9]} 49.
Kh4 {[%clk 0:00:19.1]} 49... c3 {[%clk 0:00:19.7]} 50. Kh5 {[%clk 0:00:17.2]}
50... Rh3# {[%clk 0:00:18.3]} 0-1

[Event "Early-Titled-Tuesday-Blitz-April-02-2024"]
[Site "Chess.com"]
[Date "2024.04.02"]
[Round "5"]
[White "savitha1030"]
[Black "Mikasinski"]
[Result "1-0"]
[WhiteElo "2514"]
[BlackElo "2627"]
[TimeControl "180+1"]
[EndTime "8:56:02 PDT"]
[Termination "savitha1030 won by resignation"]

1. Nf3 {[%clk 0:02:52.3]} 1... Nf6 {[%clk 0:02:59.8]} 2. g3 {[%clk 0:02:52.1]}
2... g6 {[%clk 0:03:00.3]} 3. Bg2 {[%clk 0:02:53]} 3... Bg7 {[%clk 0:03:01.2]}
4. Nc3 {[%clk 0:02:51.8]} 4... O-O {[%clk 0:03:02.1]} 5. b3 {[%clk 0:02:52.4]}
5... d6 {[%clk 0:03:03]} 6. Bb2 {[%clk 0:02:53.1]} 6... e5 {[%clk 0:03:03.5]} 7.
O-O {[%clk 0:02:53.2]} 7... Re8 {[%clk 0:03:04.3]} 8. e4 {[%clk 0:02:52.9]} 8...
Nbd7 {[%clk 0:03:04.2]} 9. Re1 {[%clk 0:02:50.2]} 9... c6 {[%clk 0:03:03.8]} 10.
a4 {[%clk 0:02:49.6]} 10... a5 {[%clk 0:03:03.7]} 11. d4 {[%clk 0:02:49.3]}
11... Qc7 {[%clk 0:03:03.5]} 12. dxe5 {[%clk 0:02:49.5]} 12... dxe5 {[%clk
0:03:03.6]} 13. Qe2 {[%clk 0:02:49.9]} 13... b6 {[%clk 0:03:00.3]} 14. Rad1
{[%clk 0:02:50.1]} 14... Ba6 {[%clk 0:03:01.1]} 15. Qd2 {[%clk 0:02:41.5]} 15...
Rad8 {[%clk 0:03:01.3]} 16. Qd6 {[%clk 0:02:40.2]} 16... Qc8 {[%clk 0:02:53.8]}
17. Qa3 {[%clk 0:02:25.2]} 17... Bf8 {[%clk 0:02:52.6]} 18. Qa1 {[%clk
0:02:24.4]} 18... Bb4 {[%clk 0:02:52.1]} 19. Ba3 {[%clk 0:02:05.3]} 19... Nc5
{[%clk 0:02:49.6]} 20. Rxd8 {[%clk 0:01:56.3]} 20... Qxd8 {[%clk 0:02:39.9]} 21.
Bxb4 {[%clk 0:01:55]} 21... axb4 {[%clk 0:02:39.7]} 22. Na2 {[%clk 0:01:55.6]}
22... Ncxe4 {[%clk 0:02:33.6]} 23. Nxb4 {[%clk 0:01:54.4]} 23... Bb7 {[%clk
0:02:33.8]} 24. Nxe5 {[%clk 0:01:46.6]} 24... Qd2 {[%clk 0:02:25.3]} 25. Bxe4
{[%clk 0:01:40.8]} 25... Qxb4 {[%clk 0:02:22.2]} 26. Nd3 {[%clk 0:01:22.8]}
26... Qd6 {[%clk 0:02:15.1]} 27. Bf3 {[%clk 0:01:20.4]} 27... Rd8 {[%clk
0:02:09.1]} 28. Qe5 {[%clk 0:01:18.5]} 28... Kf8 {[%clk 0:01:51.3]} 29. Qe3
{[%clk 0:01:08]} 29... Kg7 {[%clk 0:01:49]} 30. Qxb6 {[%clk 0:01:06.8]} 30...
Ba8 {[%clk 0:01:45.6]} 31. a5 {[%clk 0:01:06.4]} 31... Rb8 {[%clk 0:01:40.5]}
32. Qe3 {[%clk 0:00:58.3]} 32... Re8 {[%clk 0:01:30.5]} 33. Qd2 {[%clk
0:00:57.8]} 33... Rb8 {[%clk 0:01:14.6]} 34. a6 {[%clk 0:00:56.1]} 34... c5
{[%clk 0:01:13.4]} 35. a7 {[%clk 0:00:54.5]} 35... Rc8 {[%clk 0:00:57.5]} 36.
Bxa8 {[%clk 0:00:53.3]} 36... Rxa8 {[%clk 0:00:58.4]} 37. Ra1 {[%clk 0:00:52.7]}
37... c4 {[%clk 0:00:42.2]} 38. bxc4 {[%clk 0:00:43.1]} 38... Qd4 {[%clk
0:00:41.1]} 39. Qa5 {[%clk 0:00:43.7]} 39... Ne4 {[%clk 0:00:37]} 40. Qe5+
{[%clk 0:00:42]} 40... Qxe5 {[%clk 0:00:37]} 41. Nxe5 {[%clk 0:00:42.9]} 41...
Nc5 {[%clk 0:00:29.5]} 42. Nc6 {[%clk 0:00:30.9]} 42... Kf6 {[%clk 0:00:27.1]}
43. Rb1 {[%clk 0:00:29.9]} 43... Nd7 {[%clk 0:00:25.3]} 44. Rb7 {[%clk
0:00:26.4]} 44... Ke6 {[%clk 0:00:23.6]} 45. c5 {[%clk 0:00:22.7]} 45... h5
{[%clk 0:00:08.2]} 46. Nd4+ {[%clk 0:00:22.7]} 1-0